bitfinex/quotes_ETHUSD_20250318
["timestamp","ask_amount","ask_price","bid_price","bid_amount"]
[1742307007131,4.75681236,1887.7,1887.4,6.12534]
[1742307007328,0.012,1887.7,1887.5,11.14995]
[1742307007706,0.012,1887.7,1887.5,5.852]
[1742307008102,0.5227,1887.6,1887.4,5.29816]
[1742307008302,4.74481236,1887.5,1887.4,5.29816]
[1742307008854,4.74481236,1887.5,1887.3,10.59686]
[1742307009051,4.74481236,1887.5,1887.3,5.2984]
[1742307009258,5.2192936,1887.5,1887.4,5.29829]
[1742307009547,4.74481236,1887.5,1887.4,5.29829]
[1742307010106,4.74481236,1887.5,1887.3,5.2984]
[1742307010552,4.74481236,1887.5,1887.3,5.29846]
[1742307011135,4.74481236,1887.5,1887.3,5.29843]
[1742307011305,4.74481236,1887.5,1887.4,5.29829]
[1742307012035,4.86037589,1887.5,1887.4,5.29829]
[1742307012805,7.86037589,1887.5,1887.4,5.29829]
[1742307013011,3.0,1887.4,1887.2,5.29876]
[1742307013200,0.90160112,1887.5,1887.3,10.59699]
[1742307013412,0.11556353,1887.5,1887.4,5.29829]
[1742307013617,0.012,1887.7,1887.4,5.29829]
[1742307013856,0.11566075,1887.6,1887.4,5.29807]
[1742307014147,3.012,1887.7,1887.5,5.29777]
[1742307014148,0.012,1887.7,1887.5,5.29777]
[1742307014343,4.74481236,1887.6,1887.5,5.29777]
[1742307014514,4.74481236,1887.6,1887.1,11.93917]
[1742307014515,3.0,1887.5,1887.1,11.93917]
[1742307014718,4.74481236,1887.4,1887.2,5.29885]
[1742307014916,3.0,1887.4,1887.3,5.29857]
[1742307015746,3.0,1887.4,1887.2,5.29885]
[1742307015747,13.04329236,1887.4,1886.9,5.29958]
[1742307015954,8.29986,1886.9,1886.7,0.7546]
[1742307016151,7.74481236,1886.8,1886.4,5.30085]
[1742307016449,1.0727,1887.1,1886.6,5.30054]
[1742307016450,4.59480149,1887.0,1886.6,5.30054]
[1742307016645,4.59480149,1887.0,1886.2,6.6046]
[1742307016646,1.59480149,1887.0,1886.3,5.30137]
[1742307016850,7.74481236,1886.6,1886.5,5.30082]
[1742307017023,7.74481236,1886.6,1886.4,5.3011]
[1742307017024,0.5227,1887.1,1886.2,6.6046]
[1742307017223,3.0,1886.7,1886.6,5.30027]
[1742307017419,7.7614634,1886.7,1886.6,5.30027]
[1742307018348,3.0,1886.7,1886.6,5.30027]
[1742307018529,3.9235464,1887.1,1887.0,5.29941]
[1742307019259,5.84652518,1887.1,1886.8,10.59979]
[1742307019419,5.84652518,1887.1,1886.8,5.29982]
[1742307019749,3.0,1887.0,1886.6,11.15037]
[1742307019946,4.74613286,1886.8,1886.7,5.30002]
[1742307020715,3.0,1886.7,1886.6,5.30045]
[1742307020947,3.0,1886.7,1886.5,5.3008]
[1742307021131,7.74613286,1886.6,1886.5,5.3008]
[1742307021819,7.74613286,1886.6,1886.3,5.30137]
[1742307022024,7.74613286,1886.4,1886.3,5.30137]
[1742307022928,3.0,1886.3,1886.2,5.30166]
[1742307023119,7.74613286,1886.4,1886.0,5.30202]
[1742307023316,3.0,1886.1,1886.0,5.30208]
[1742307023529,3.40200637,1886.1,1886.0,5.30208]
[1742307024050,3.51590425,1886.1,1886.0,5.30208]
[1742307024253,3.51590425,1886.1,1885.7,5.30305]
[1742307024457,3.51590425,1886.1,1885.6,5.30323]
[1742307024458,3.0,1885.8,1885.6,5.30323]
[1742307024627,4.22821008,1886.1,1885.7,5.30307]
[1742307024827,3.0,1885.8,1885.5,5.30347]
[1742307025255,0.5227,1885.9,1885.7,5.30294]
[1742307025466,1.22821008,1886.1,1885.9,5.30237]
[1742307025467,0.92470637,1886.1,1885.9,5.30237]
[1742307025754,4.74613286,1886.0,1885.9,5.30237]
[1742307025933,4.74613286,1886.0,1885.7,11.15303]
[1742307026252,7.74613286,1885.8,1885.7,11.15307]
[1742307026424,4.74613286,1885.8,1885.7,11.15307]
[1742307027058,4.85927637,1885.8,1885.7,5.85]
[1742307027357,5.64520401,1885.8,1885.5,5.30359]
[1742307027562,7.74613286,1885.7,1885.6,5.30335]
[1742307028121,7.85927637,1885.7,1885.6,5.30335]
[1742307028653,0.11314351,1885.7,1885.6,6.08325]
[1742307028867,4.74613286,1885.9,1885.8,5.30278]
[1742307029070,7.85920334,1885.9,1885.8,5.30278]
[1742307029930,0.11307048,1885.9,1885.8,5.30278]
[1742307030176,0.11307048,1885.9,1885.8,6.363356]
[1742307030459,0.11307048,1885.9,1885.8,12.214356]
[1742307030676,4.74613286,1886.2,1886.1,5.30194]
[1742307030898,3.0,1886.2,1886.1,5.30194]
[1742307031037,0.39108557,1886.6,1886.3,5.3012]
[1742307031347,4.74613286,1886.4,1886.3,5.3012]
[1742307031730,1.05342058,1886.5,1886.4,5.3011]
[1742307032332,4.74613286,1886.6,1886.5,5.30082]
[1742307032542,0.40739332,1886.9,1886.5,5.30082]
[1742307032543,4.74613286,1886.7,1886.6,5.30049]
[1742307034685,4.74613286,1886.9,1886.8,5.29997]
[1742307034833,4.74613286,1887.3,1887.2,5.29885]
[1742307035029,4.74613286,1887.3,1887.1,5.29903]
[1742307035287,3.0,1887.2,1887.0,5.29939]
[1742307035582,4.74613286,1887.1,1886.9,5.29944]
[1742307035731,5.22074615,1887.1,1886.9,5.29944]
[1742307035931,5.22074615,1887.1,1886.9,10.59894]
[1742307036161,0.5227,1887.2,1887.1,5.29913]
[1742307036359,4.74613286,1887.2,1887.0,5.29931]
[1742307036678,4.74613286,1887.2,1887.1,5.29913]
[1742307037035,7.74613286,1887.3,1887.2,5.29885]
[1742307037353,4.74613286,1887.3,1887.2,5.29885]
[1742307038051,3.0,1887.2,1886.9,5.2996]
[1742307038226,4.74613286,1887.0,1886.9,11.1496]
[1742307038433,3.0,1887.1,1887.0,5.49931]
[1742307038731,3.0,1887.1,1887.0,7.07330837]
[1742307038957,4.74613286,1887.2,1887.1,5.29913]
[1742307039174,1.49329255,1887.7,1887.5,5.29789]
[1742307039348,4.74613286,1887.6,1887.4,5.29822]
[1742307039530,4.74613286,1887.5,1887.4,5.29822]
[1742307039732,3.142553,1887.4,1887.3,5.29846]
[1742307039935,4.19639671,1887.4,1887.0,1.018]
[1742307040138,4.19639671,1887.4,1887.0,5.49941]
[1742307040139,4.74613286,1887.1,1887.0,5.49941]
[1742307040641,4.74613286,1887.2,1887.1,5.29903]
[1742307040966,7.74613286,1887.2,1887.1,5.29903]
[1742307042361,7.91919641,1887.2,1887.1,5.29903]
[1742307042938,3.17306355,1887.2,1887.1,6.378874]
[1742307043136,0.17306355,1887.2,1887.1,6.378874]
[1742307043336,4.91919641,1887.2,1887.1,6.378874]
[1742307044365,4.91919641,1887.2,1887.1,5.29903]
[1742307044760,4.91919641,1887.2,1887.0,5.49941]
[1742307044941,7.91919641,1887.2,1887.0,5.49941]
[1742307045140,3.0,1887.1,1887.0,5.49941]
[1742307045382,3.0,1887.1,1887.0,0.2]
[1742307045556,9.26560932,1887.1,1887.0,0.2]
[1742307045886,3.0,1887.0,1886.7,5.30012]
[1742307046171,7.74613286,1886.8,1886.7,5.30012]
[1742307046577,7.92069254,1886.8,1886.7,5.30012]
[1742307047140,3.0,1886.7,1886.5,5.30078]
[1742307047338,7.74613286,1886.6,1886.5,10.60148]
[1742307047540,7.74613286,1886.6,1886.4,5.30107]
[1742307047541,7.92026701,1886.6,1886.4,5.30107]
[1742307047772,7.92026701,1886.6,1886.5,5.30082]
[1742307047940,3.17413415,1886.6,1886.5,5.30082]
[1742307048143,3.0,1886.6,1886.5,5.30082]
[1742307048370,7.92026701,1886.6,1886.5,5.30082]
[1742307048749,3.0,1886.6,1886.5,6.361009]
[1742307048973,0.17413415,1886.6,1886.5,6.361009]
[1742307049172,3.0,1886.8,1886.7,5.30025]
[1742307049373,4.74613286,1886.8,1886.5,5.30055]
[1742307049565,0.17413415,1886.8,1886.6,5.30026]
[1742307049872,3.92802891,1887.0,1886.7,5.30025]
[1742307050078,4.74613286,1886.8,1886.7,5.30025]
[1742307050571,3.0,1886.7,1886.3,35.8283]
[1742307050783,4.74613286,1886.5,1886.4,10.60181]
[1742307051069,7.74613286,1886.7,1886.6,5.30054]
[1742307053969,8.52074615,1886.7,1886.3,35.8283]
[1742307054169,7.74613286,1886.4,1886.3,5.30138]
[1742307054399,7.74613286,1886.4,1886.1,10.60384]
[1742307054607,7.74613286,1886.2,1886.1,5.30192]
[1742307055130,7.74613286,1886.2,1886.0,5.3022]
[1742307055131,3.0,1886.1,1886.0,5.3022]
[1742307055305,4.74613286,1886.2,1886.1,5.30194]
[1742307055472,4.74613286,1886.2,1886.1,6.362354]
[1742307055672,7.74613286,1886.4,1886.3,5.30138]
[1742307056179,3.0,1886.4,1886.3,5.30138]
[1742307056976,3.1734043,1886.4,1886.1,10.60372]
[1742307057203,3.57259411,1886.4,1886.3,5.30138]
[1742307058872,3.57259411,1886.4,1886.2,5.30158]
[1742307059074,3.57259411,1886.4,1886.2,10.60306]
[1742307059275,3.57259411,1886.4,1886.3,5.30138]
[1742307059475,8.31872697,1886.4,1886.3,5.30138]
[1742307060923,0.1734043,1886.4,1886.3,6.10808]
[1742307061123,0.1734043,1886.4,1886.3,7.249036]
[1742307061291,3.0,1886.5,1886.4,5.3011]
[1742307061478,3.0,1886.5,1886.3,7.249036]
[1742307061479,4.74613286,1886.8,1886.7,5.30025]
[1742307061806,7.790493,1886.7,1886.4,5.30106]
[1742307062011,4.74613286,1886.5,1886.2,5.3015]
[1742307062205,4.74613286,1886.4,1886.3,5.30127]
[1742307062408,4.74613286,1886.4,1886.2,10.60305]
[1742307062711,5.26883286,1886.5,1886.4,5.3011]
[1742307063112,4.74613286,1886.5,1886.4,5.3011]
[1742307063908,4.74613286,1886.5,1886.3,5.30137]
[1742307064212,3.0,1886.2,1885.9,10.60468]
[1742307064415,3.5227,1886.3,1886.1,5.30194]
[1742307064616,3.5227,1886.3,1885.9,5.30246]
[1742307064929,7.74613286,1886.0,1885.9,5.3025]
[1742307065090,3.0,1886.0,1885.9,5.3025]
[1742307065277,4.74613286,1886.2,1886.1,5.30194]
[1742307067113,4.74613286,1886.2,1885.8,5.30252]
[1742307067300,4.74613286,1885.9,1885.8,5.30252]
[1742307067496,4.76615979,1885.9,1885.7,5.30304]
[1742307067707,4.76615979,1885.9,1885.7,5.30291]
[1742307067929,4.76615979,1885.9,1885.8,5.30278]
[1742307068779,5.24277577,1885.9,1885.7,5.30291]
[1742307069114,5.76547577,1885.9,1885.6,5.30318]
[1742307069313,4.76615979,1885.7,1885.6,5.30318]
[1742307069684,4.76615979,1885.7,1885.5,10.60705]
[1742307069886,4.76615979,1885.7,1885.6,5.30335]
[1742307071228,0.5227,1885.9,1885.7,5.30293]
[1742307071401,7.76615979,1885.8,1885.7,5.30293]
[1742307072009,7.93821356,1885.8,1885.7,5.30293]
[1742307072318,7.93821356,1885.8,1885.6,5.30316]
[1742307072525,7.93821356,1885.8,1885.7,5.30307]
[1742307072912,7.93821356,1885.8,1885.5,5.30336]
[1742307073096,4.76615979,1885.6,1885.5,5.30336]
[1742307073297,4.76615979,1885.6,1885.5,8.781426]
[1742307073617,4.93821356,1885.6,1885.5,8.781426]
[1742307073816,4.76615979,1885.8,1885.7,5.30307]
[1742307074023,7.93821356,1885.8,1885.7,5.30307]
[1742307074226,3.17205377,1885.8,1885.7,7.160001]
[1742307075096,3.77e-06,1885.8,1885.7,7.160001]
[1742307075300,0.5227,1886.6,1886.4,5.30101]
[1742307075549,0.15973892,1886.5,1886.4,5.30101]
[1742307075709,0.15973892,1886.5,1886.2,5.30159]
[1742307076139,3.15973892,1886.5,1886.2,5.30159]
[1742307076354,3.0,1886.2,1886.1,5.844]
[1742307076515,3.0,1886.2,1886.1,5.30194]
[1742307076710,3.16010498,1886.2,1886.0,5.30201]
[1742307076935,3.0,1886.0,1885.9,5.30241]
[1742307077162,4.76615979,1886.0,1885.9,5.30241]
[1742307077324,4.92637457,1886.0,1885.9,5.30241]
[1742307077702,4.92637457,1886.0,1885.8,11.14668]
[1742307077827,4.92637457,1886.0,1885.8,10.6053]
[1742307078138,3.0,1885.9,1885.6,11.14622]
[1742307078347,3.0,1885.7,1885.6,11.14622]
[1742307078554,3.0,1885.7,1885.6,5.30322]
[1742307078715,3.15977553,1885.7,1885.5,5.30352]
[1742307078916,4.76615979,1885.6,1885.5,5.30352]
[1742307079439,4.04872537,1886.1,1886.0,5.30222]
[1742307079612,8.81488516,1886.1,1886.0,5.30222]
[1742307080112,8.81488516,1886.1,1886.0,40.30222]
[1742307080429,0.5227,1886.7,1886.4,5.30092]
[1742307080743,5.81945732,1886.5,1886.4,5.3011]
[1742307081044,8.81945732,1886.5,1886.4,5.3011]
[1742307081210,5.81945732,1886.5,1886.4,5.3011]
[1742307081412,5.80095094,1886.5,1886.4,40.3011]
[1742307081642,7.74765341,1886.5,1886.4,40.3011]
[1742307082036,4.74765341,1886.5,1886.4,40.3011]
[1742307082243,4.74765341,1886.5,1886.4,41.0632]
[1742307082411,4.74765341,1886.6,1886.5,5.30082]
[1742307082612,4.90140275,1886.6,1886.5,5.30082]
[1742307083353,5.29754565,1886.6,1886.5,40.30082]
[1742307083512,0.15374934,1886.6,1886.5,40.30082]
[1742307083846,7.74765341,1886.8,1886.7,5.30025]
[1742307084040,4.74765341,1887.0,1886.9,5.29969]
[1742307084245,5.67275644,1887.2,1887.0,5.29936]
[1742307084542,5.15005644,1887.2,1887.1,5.29913]
[1742307084710,4.74765341,1887.2,1887.1,40.29913]
[1742307084915,7.74765341,1887.2,1887.1,40.29913]
[1742307085311,7.74765341,1887.2,1887.1,35.0]
[1742307085510,5.27035341,1887.2,1886.9,5.842]
[1742307085812,7.74765341,1887.0,1886.9,11.14144]
[1742307086017,7.74765341,1887.0,1886.9,46.14144]
[1742307086536,8.52241875,1887.0,1886.9,40.842]
[1742307086846,8.52241875,1887.0,1886.8,5.29994]
[1742307086847,3.0,1886.9,1886.8,5.29994]
[1742307087010,3.15515561,1886.9,1886.6,5.30039]
[1742307087210,4.05966749,1886.9,1886.7,5.30024]
[1742307087443,3.15515561,1886.9,1886.6,5.30051]
[1742307087644,7.74765341,1886.7,1886.6,10.60086]
[1742307087840,7.90260124,1886.7,1886.6,10.60086]
[1742307088042,7.90260124,1886.7,1886.6,5.30035]
[1742307090141,3.15494783,1886.7,1886.6,5.30035]
[1742307090851,3.15494783,1886.7,1886.6,40.30035]
[1742307091346,3.0,1886.7,1886.6,40.30035]
[1742307091718,3.15566958,1886.7,1886.6,5.30035]
[1742307091916,3.0,1886.6,1886.4,11.13993]
[1742307092138,4.74765341,1886.6,1886.5,5.30082]
[1742307092336,4.74765341,1886.6,1885.5,0.795]
[1742307092337,0.5227,1886.4,1885.5,0.795]
[1742307092548,7.030258,1885.1,1884.8,0.795]
[1742307092754,7.030258,1885.1,1884.3,5.30687]
[1742307092755,3.0,1884.7,1884.3,5.30687]
[1742307092953,0.55,1884.8,1884.1,6.6711]
[1742307093123,0.55,1884.6,1884.2,0.66711]
[1742307093464,4.74765341,1884.3,1884.1,6.13959]
[1742307093662,4.74765341,1884.3,1884.2,5.30729]
[1742307093873,0.15372414,1884.3,1884.2,5.30729]
[1742307094171,0.39291223,1884.8,1884.7,5.30588]
[1742307094469,0.14092771,1884.8,1884.7,5.839]
[1742307094770,4.74765341,1884.8,1884.7,6.50312]
[1742307094922,4.74765341,1884.8,1884.7,11.809]
[1742307095116,3.0,1884.7,1884.4,5.30654]
[1742307095342,4.74765341,1884.5,1884.4,5.30654]
[1742307095543,4.74765341,1884.5,1884.4,11.14754]
[1742307095741,4.88822509,1884.5,1884.4,11.14754]
[1742307095922,4.74765341,1884.5,1884.3,6.09959]
[1742307096131,3.0,1884.4,1884.2,17.536]
[1742307096332,3.14057168,1884.5,1884.3,11.14697]
[1742307096554,3.0,1884.5,1884.3,11.14697]
[1742307096748,3.0,1884.5,1884.3,11.14699]
[1742307096961,3.0,1884.5,1884.3,5.84]
[1742307097551,3.0,1884.5,1884.3,11.14695]
[1742307098057,4.74765341,1884.4,1884.3,11.14695]
[1742307098442,4.74765341,1884.4,1884.3,5.84]
[1742307099643,5.15197521,1884.4,1884.3,5.84]
[1742307100275,3.0,1884.3,1884.2,17.536]
[1742307100976,3.0,1884.3,1884.2,22.84329]
[1742307101572,3.1405594,1884.3,1884.2,22.84329]
[1742307101771,5.71317276,1884.9,1884.7,5.30566]
[1742307101772,1.45657449,1884.9,1884.7,5.30566]
[1742307101970,1.04886173,1884.9,1884.8,5.842]
[1742307102175,0.5227,1885.0,1884.8,5.842]
[1742307102475,4.74765341,1884.9,1884.8,5.842]
[1742307102682,4.74765341,1884.9,1884.8,11.7318]
[1742307103067,4.74765341,1885.0,1884.9,5.30512]
[1742307106059,4.74765341,1885.2,1885.1,5.30475]
[1742307106262,4.74765341,1885.2,1885.1,11.14675]
[1742307106478,4.74765341,1885.2,1885.1,14.546928]
[1742307107969,5.14154848,1885.5,1885.3,5.30419]
[1742307108277,4.74765341,1885.6,1885.5,5.30363]
[1742307108465,4.74765341,1885.6,1885.5,11.14563]
[1742307108870,7.74765341,1885.8,1885.7,5.30301]
[1742307109184,11.29035341,1886.0,1885.9,5.3025]
[1742307109380,8.27035341,1886.0,1885.9,5.3025]
[1742307109580,4.74765341,1886.0,1885.9,11.67375]
[1742307109781,3.0,1886.1,1886.0,5.30199]
[1742307109956,3.0,1886.4,1886.3,5.30138]
[1742307109957,4.74765341,1886.4,1886.3,5.30138]
[1742307110282,4.74765341,1886.4,1886.3,11.672518]
[1742307110483,7.74765341,1886.4,1886.3,11.672518]
[1742307111062,3.0,1886.4,1886.3,11.672518]
[1742307111281,0.25918933,1886.8,1886.3,11.672518]
[1742307111282,0.25918933,1886.8,1886.5,5.30082]
[1742307111477,3.0,1886.7,1886.4,5.30101]
[1742307111672,3.0,1886.7,1886.4,10.60192]
[1742307111844,3.25977196,1886.8,1886.5,5.30079]
[1742307112050,1.07931611,1886.6,1886.5,5.30079]
[1742307112462,1.07931611,1886.6,1886.5,6.36096]
[1742307113967,3.0,1887.1,1886.8,5.29976]
[1742307114164,11.62981019,1887.2,1887.0,5.29925]
[1742307114360,6.00857112,1887.2,1887.0,5.29925]
[1742307114682,0.39876093,1887.2,1887.1,5.29913]
[1742307114852,5.60981019,1887.5,1887.1,10.59826]
[1742307115047,5.60981019,1887.5,1887.2,11.13762]
[1742307115277,5.60981019,1887.5,1887.2,11.13779]
[1742307115578,3.0,1887.4,1887.2,11.13785]
[1742307115779,3.0,1887.4,1887.2,16.43642]
[1742307115968,3.0,1887.4,1887.2,11.13769]
[1742307116176,3.0,1887.4,1887.2,11.13777]
[1742307116356,1.0507743,1887.3,1887.2,11.13777]
[1742307117166,1.19086391,1887.3,1887.2,11.13777]
[1742307117649,1.19086391,1887.3,1887.2,11.13785]
[1742307117849,0.14008961,1887.3,1887.2,12.2279553]
[1742307119049,0.39535568,1887.5,1887.2,6.9291053]
[1742307119256,0.14033458,1887.3,1887.0,6.08050902]
[1742307119563,0.14033458,1887.3,1887.1,11.13513]
[1742307119761,0.14033458,1887.3,1887.1,11.13503]
[1742307120213,0.14033458,1887.3,1887.0,5.29939]
[1742307120367,3.66303458,1887.3,1887.2,5.836]
[1742307120680,4.57648,1887.2,1887.1,5.836]
[1742307120879,0.5227,1887.3,1887.1,5.836]
[1742307121087,0.14027334,1887.2,1887.1,11.71867]
[1742307121284,0.14027334,1887.2,1887.1,12.50197]
[1742307121477,3.0,1887.4,1887.3,5.29857]
[1742307121673,3.14028559,1887.4,1887.3,5.29857]
[1742307122055,0.14028559,1887.4,1887.3,5.29857]
[1742307122282,0.012,1887.7,1887.6,5.29773]
[1742307122482,0.15228559,1887.7,1887.6,5.835]
[1742307122884,5.44973559,1887.7,1887.6,5.835]
[1742307123059,13.925771,1887.6,1887.5,5.835]
[1742307123266,8.08711019,1887.6,1887.5,5.835]
[1742307123789,8.22739578,1887.6,1887.5,5.835]
[1742307125162,0.14028559,1887.6,1887.5,13.47021]
[1742307125364,0.41368681,1887.7,1887.5,8.1722]
[1742307125564,0.14028559,1887.6,1887.5,8.1722]
[1742307125878,0.012,1887.7,1887.5,8.1722]
[1742307126074,0.14147385,1887.6,1887.5,5.835]
[1742307126384,0.14147385,1887.6,1887.4,17.537]
[1742307126385,6.451132,1887.5,1887.4,17.537]
[1742307126618,3.5227,1887.5,1887.4,17.537]
[1742307126813,3.5227,1887.5,1886.8,17.534]
[1742307127015,8.29894,1887.2,1886.8,17.534]
[1742307127223,1.0727,1887.1,1886.8,22.83394]
[1742307127386,4.2141616,1887.1,1886.8,22.83394]
[1742307127728,10.38668019,1887.0,1886.8,17.534]
[1742307127895,3.14105743,1886.9,1886.8,17.534]
[1742307128096,3.14105743,1886.9,1886.7,5.30025]
[1742307128416,3.14105743,1886.9,1886.6,11.13428]
[1742307128615,3.54939851,1886.9,1886.6,11.13428]
[1742307129198,3.54939851,1886.9,1886.6,16.43464]
[1742307129388,3.54939851,1886.9,1886.6,11.13428]
[1742307129593,3.54939851,1886.9,1886.6,5.834]
[1742307129804,4.41304938,1886.9,1886.6,11.13452]
[1742307129983,3.54939851,1886.9,1886.7,5.30025]
[1742307130490,3.54939851,1886.9,1886.6,11.13452]
[1742307130685,0.5227,1886.6,1886.2,17.534]
[1742307130989,0.14070214,1886.5,1886.2,28.6685]
[1742307131190,0.14070214,1886.5,1886.3,5.30125]
[1742307131394,0.14070214,1886.5,1886.4,5.3011]
[1742307131716,0.14070214,1886.5,1886.3,5.30125]
[1742307132015,0.59314046,1886.5,1886.2,23.367]
[1742307132182,8.08711019,1886.4,1886.2,17.534]
[1742307132387,13.38836019,1886.4,1886.0,11.1352]
[1742307132694,0.14072664,1886.3,1886.0,11.1352]
[1742307132897,0.14072664,1886.3,1885.9,11.1354]
[1742307132898,3.14072664,1886.3,1885.9,11.1354]
[1742307133091,3.14072664,1886.3,1885.9,16.43771]
[1742307133294,7.75056862,1886.0,1885.9,11.13531]
[1742307133494,3.0,1886.0,1885.9,11.13531]
[1742307133821,0.1402119,1886.0,1885.9,12.248841]
[1742307134206,4.08007289,1886.4,1886.3,5.30138]
[1742307134603,4.22016219,1886.4,1886.3,11.13538]
[1742307134912,9.3e-06,1886.4,1886.3,13.586274]
[1742307135119,5.14352045,1886.9,1886.8,5.29997]
[1742307135430,0.12924892,1886.9,1886.8,11.13397]
[1742307135603,0.12924892,1886.9,1886.8,11.88477]
[1742307135804,4.75056862,1887.3,1887.1,5.29913]
[1742307136016,4.75056862,1887.3,1887.2,5.29885]
[1742307136202,7.75056862,1887.3,1887.2,5.29885]
[1742307136404,4.75056862,1887.3,1887.2,5.29885]
[1742307136924,4.75056862,1887.5,1887.4,5.2982]
[1742307137114,1.05222884,1887.5,1887.3,5.2985]
[1742307137295,1.05222884,1887.5,1887.4,5.29819]
[1742307137833,0.012,1887.7,1887.6,5.29773]
[1742307138327,1.05607809,1887.7,1887.5,5.29786]
[1742307138626,1.05607809,1887.7,1887.6,5.29773]
[1742307139034,0.012,1887.7,1887.6,5.29773]
[1742307140136,0.012,1887.7,1887.6,11.13073]
[1742307142652,0.14256253,1887.7,1887.6,11.13073]
[1742307142801,0.012,1887.7,1887.4,5.29817]
[1742307143001,0.1427343,1887.7,1887.5,5.831]
[1742307143253,0.32627343,1887.7,1887.5,5.831]
[1742307143451,0.1307343,1887.6,1887.5,5.831]
[1742307143604,0.1307343,1887.6,1887.5,11.12901]
[1742307143945,0.012,1887.7,1887.5,11.12901]
[1742307144104,0.13072203,1887.6,1887.5,11.12901]
[1742307144303,0.13072203,1887.6,1887.5,5.29801]
[1742307144836,0.012,1887.7,1887.5,5.29801]
[1742307145003,0.13072203,1887.6,1887.5,5.29801]
[1742307145433,0.012,1887.7,1887.5,5.29801]
[1742307145629,3.0,1887.5,1887.4,5.83]
[1742307145936,0.39657599,1887.5,1887.4,11.12829]
[1742307146137,0.41849001,1887.7,1887.6,5.29773]
[1742307146138,0.012,1887.7,1887.6,5.29773]
[1742307148033,0.14358164,1887.7,1887.6,5.29773]
[1742307148248,0.14358164,1887.7,1887.4,11.1281]
[1742307148542,0.4579398,1887.7,1887.4,11.12828]
[1742307149226,8.08268063,1887.6,1887.2,17.536]
[1742307149431,3.0,1887.5,1887.2,17.536]
[1742307149727,3.13171662,1887.5,1887.3,5.29847]
[1742307149932,3.13171662,1887.5,1887.4,5.29829]
[1742307150922,0.52829261,1887.5,1887.4,5.29829]
[1742307151844,0.52829261,1887.5,1887.4,6.07389]
[1742307152042,0.52829261,1887.5,1887.4,11.90189]
[1742307152573,0.52829261,1887.5,1887.4,5.828]
[1742307153061,0.52829261,1887.5,1887.4,11.12629]
[1742307154663,0.13171662,1887.5,1887.4,11.12629]
[1742307155170,0.012,1887.7,1887.6,5.29773]
[1742307155326,0.42001613,1887.7,1887.3,11.12646]
[1742307155532,0.42001613,1887.7,1887.4,5.29829]
[1742307155863,3.5227,1887.6,1887.3,5.828]
[1742307156060,0.35227,1887.5,1887.3,5.828]
[1742307156362,0.75161013,1887.5,1887.3,5.828]
[1742307156665,0.35227,1887.5,1887.3,5.828]
[1742307156833,0.35227,1887.5,1887.3,11.12643]
[1742307157163,7.7438355,1887.4,1887.3,11.12643]
[1742307158267,3.0,1887.4,1887.3,11.12643]
[1742307159064,7.7438355,1887.4,1887.3,11.12643]
[1742307160548,3.0,1887.4,1887.3,11.12643]
[1742307161433,3.0,1887.4,1887.3,46.12643]
[1742307161635,3.0,1887.4,1887.3,46.93483]
[1742307161968,3.0,1887.4,1887.3,52.158186]
[1742307162737,3.13138531,1887.4,1887.3,52.158186]
[1742307163045,3.0,1887.4,1887.3,46.93483]
[1742307163248,3.0,1887.4,1887.3,46.12643]
[1742307163563,3.1315203,1887.4,1887.3,46.12643]
[1742307163736,7.8753558,1887.4,1887.3,46.12643]
[1742307163936,7.7438355,1887.4,1887.3,40.29843]
[1742307164142,7.8753558,1887.4,1887.3,46.12543]
[1742307165585,7.7438355,1887.4,1887.3,46.12543]
[1742307165764,7.8753558,1887.4,1887.3,46.12543]
[1742307167577,3.1315203,1887.4,1887.3,46.12543]
[1742307168077,7.8753558,1887.4,1887.3,46.12543]
[1742307168246,3.5227,1887.3,1886.9,17.53]
[1742307168445,3.0,1886.9,1886.7,5.30014]
[1742307168701,3.0,1887.0,1886.8,40.29997]
[1742307168993,7.8752699,1886.9,1886.8,40.29997]
[1742307169299,3.0,1886.8,1886.5,5.30063]
[1742307169442,7.7438355,1886.6,1886.5,10.60134]
[1742307169642,7.7438355,1886.6,1886.5,40.30063]
[1742307169877,7.7438355,1886.6,1886.5,5.30063]
[1742307170038,7.87491397,1886.6,1886.5,5.30063]
[1742307170246,7.87491397,1886.6,1886.4,40.3011]
[1742307170891,7.87491397,1886.6,1886.4,5.3011]
[1742307171295,8.27823874,1886.6,1886.4,5.3011]
[1742307171775,8.27823874,1886.6,1886.4,5.301]
[1742307171991,3.53440324,1886.6,1886.5,5.30082]
[1742307172977,3.53310181,1886.6,1886.5,5.30082]
[1742307173941,0.12977704,1886.6,1886.5,7.131891]
[1742307174146,4.7438355,1887.1,1886.9,5.29967]
[1742307174373,3.12507149,1887.0,1886.8,5.29991]
[1742307174549,3.12507149,1887.0,1886.8,5.2998]
[1742307175078,3.12507149,1887.0,1886.9,40.29969]
[1742307175388,3.0,1887.2,1887.1,5.29913]
[1742307175691,0.12507149,1887.2,1887.1,5.29913]
[1742307175876,3.12507149,1887.2,1887.1,5.29913]
[1742307176067,3.12507149,1887.2,1887.0,10.5986]
[1742307176259,3.12507149,1887.2,1887.0,5.29921]
[1742307176460,3.12507149,1887.2,1887.1,5.29913]
[1742307176988,0.12507149,1887.2,1887.1,12.183964]
[1742307177168,5.83619852,1887.7,1887.4,5.29809]
[1742307177368,7.7438355,1887.5,1887.4,5.29809]
[1742307177903,4.86890699,1887.5,1887.2,5.29864]
[1742307178073,4.7438355,1887.3,1887.2,5.29864]
[1742307178277,3.0,1887.3,1887.2,7.0468904]
[1742307178467,3.0,1887.3,1887.2,7.09987354]
[1742307178660,3.0,1887.3,1887.2,7.0468904]
[1742307178860,7.7438355,1887.3,1887.2,5.29864]
[1742307179079,7.7438355,1887.3,1887.1,5.29896]
[1742307179284,3.0,1887.3,1887.2,5.29885]